bitfinex/quotes_BTCUSD_20230111
["timestamp","ask_amount","ask_price","bid_price","bid_amount"]
[1673476919082,0.01415771,17580.0,17579.0,4.15959975]
[1673476919257,0.01715771,17580.0,17579.0,4.29859975]
[1673476919518,0.01415771,17580.0,17579.0,4.15959975]
[1673476919778,0.01415771,17580.0,17579.0,4.29859975]
[1673476920031,0.01415771,17580.0,17579.0,4.15959975]
[1673476920281,0.01715771,17580.0,17579.0,4.29859975]
[1673476921856,0.01572471,17580.0,17579.0,4.29859975]
[1673476924440,0.01572471,17580.0,17579.0,4.86745975]
[1673476926925,1e-08,17580.0,17579.0,4.86745975]
[1673476927681,1e-08,17580.0,17579.0,5.43631975]
[1673476927969,0.24212234,17582.0,17579.0,5.29731975]
[1673476928219,0.002,17580.0,17579.0,3.11059327]
[1673476928470,0.002,17580.0,17579.0,4.27301208]
[1673476928989,0.01461034,17582.0,17579.0,4.13401208]
[1673476929232,0.01661034,17582.0,17581.0,0.1619]
[1673476929477,0.0145494,17582.0,17581.0,1.2390967]
[1673476929730,0.0145494,17582.0,17581.0,1.97313404]
[1673476931021,0.0165494,17582.0,17581.0,1.97313404]
[1673476931289,0.0165494,17582.0,17581.0,1.95023404]
[1673476931547,0.0185494,17582.0,17581.0,2.11213404]
[1673476931799,0.0185494,17582.0,17581.0,2.11156314]
[1673476934081,0.0185494,17582.0,17581.0,2.27346314]
[1673476934586,0.0185494,17582.0,17581.0,2.84225814]
[1673476935092,0.0185494,17582.0,17581.0,4.84225814]
[1673476936360,0.0185494,17582.0,17581.0,4.68035814]
[1673476938111,0.0185494,17582.0,17581.0,4.84988561]
[1673476938882,0.0185494,17582.0,17581.0,4.68035814]
[1673476939438,0.0185494,17582.0,17581.0,4.84988561]
[1673476939708,0.0185494,17582.0,17581.0,5.41868061]
[1673476940483,0.0185494,17582.0,17581.0,5.58058061]
[1673476941999,0.0185494,17582.0,17581.0,5.83588278]
[1673476942750,0.0185494,17582.0,17581.0,6.67594764]
[1673476943244,0.0185494,17582.0,17581.0,5.83588278]
[1673476943747,0.0185494,17582.0,17581.0,6.67594335]
[1673476945738,0.01369378,17583.0,17582.0,0.0370988]
[1673476945980,0.01369378,17583.0,17582.0,2.7798617]
[1673476946231,0.01369378,17583.0,17582.0,3.3486247]
[1673476946478,0.01369378,17583.0,17582.0,3.17909723]
[1673476946974,0.01369378,17583.0,17582.0,3.24709723]
[1673476946975,0.01469378,17583.0,17582.0,3.24709723]
[1673476947476,0.01469378,17583.0,17582.0,3.9853877]
[1673476947721,0.01369378,17583.0,17582.0,3.9173877]
[1673476948243,0.01569378,17583.0,17582.0,4.0563877]
[1673476948976,0.01369378,17583.0,17582.0,3.9173877]
[1673476949234,0.01569378,17583.0,17582.0,4.0563877]
[1673476949486,0.47186416,17586.0,17582.0,4.0563877]
[1673476949487,0.41112282,17586.0,17582.0,4.0563877]
[1673476949739,0.41112282,17586.0,17583.0,2.23513224]
[1673476950010,0.41112282,17586.0,17584.0,1.66789347]
[1673476950260,0.41112282,17586.0,17585.0,1.0739458]
[1673476950529,0.22746,17586.0,17585.0,1.0739458]
[1673476950774,0.22946,17586.0,17585.0,0.7175998]
[1673476951030,0.22946,17586.0,17585.0,0.84875455]
[1673476951271,0.456913,17586.0,17585.0,1.20510055]
[1673476951522,0.456913,17586.0,17585.0,0.84875455]
[1673476951770,0.754913,17586.0,17585.0,0.13115475]
[1673476952016,0.756913,17586.0,17585.0,0.13115475]
[1673476952263,0.984366,17586.0,17585.0,0.13115475]
[1673476952526,0.982366,17586.0,17585.0,0.13115475]
[1673476952772,0.984366,17586.0,17585.0,0.141]
[1673476953513,0.982366,17586.0,17584.0,0.7175998]
[1673476953753,0.983366,17586.0,17585.0,0.069]
[1673476954008,1.15386286,17586.0,17585.0,0.069]
[1673476954519,1.40941712,17586.0,17585.0,0.069]
[1673476954769,1.40941712,17586.0,17584.0,0.7175998]
[1673476955016,0.656346,17585.0,17583.0,3.11814428]
[1673476955270,0.682437,17584.0,17583.0,1.12323857]
[1673476955513,0.682437,17584.0,17583.0,0.7175998]
[1673476955759,0.682437,17584.0,17582.0,0.80394812]
[1673476956522,0.456958,17584.0,17583.0,1.0739458]
[1673476956776,0.002,17584.0,17583.0,1.0739458]
[1673476957018,0.002,17584.0,17583.0,1.18997521]
[1673476957516,0.004,17584.0,17583.0,1.18997521]
[1673476957777,0.39794986,17586.0,17583.0,1.18997521]
[1673476958022,0.65350412,17586.0,17584.0,1.0739458]
[1673476958282,0.65350412,17586.0,17584.0,0.7175998]
[1673476958530,0.39794986,17586.0,17584.0,0.23396315]
[1673476958746,0.39794986,17586.0,17584.0,0.23293191]
[1673476959026,0.39794986,17586.0,17584.0,0.127]
[1673476959294,0.39794986,17586.0,17584.0,0.70495307]
[1673476959788,0.39794986,17586.0,17584.0,0.78944838]
[1673476960058,0.88095712,17586.0,17584.0,0.78944838]
[1673476961317,0.88095712,17586.0,17584.0,0.70495307]
[1673476961569,0.88095712,17586.0,17584.0,0.127]
[1673476961822,0.17049686,17585.0,17584.0,0.127]
[1673476962071,0.39796286,17585.0,17584.0,0.127]
[1673476962618,0.65350412,17586.0,17584.0,0.127]
[1673476962865,0.65350412,17586.0,17584.0,0.66261356]
[1673476963122,0.42605112,17586.0,17584.0,0.08445241]
[1673476963877,0.42605112,17586.0,17584.0,0.21145241]
[1673476964091,0.42605112,17586.0,17584.0,0.08445241]
[1673476964376,0.42605112,17586.0,17584.0,0.21145241]
[1673476964647,0.17049686,17586.0,17584.0,0.21145241]
[1673476965139,0.17049686,17586.0,17584.0,0.127]
[1673476965650,0.42265112,17586.0,17584.0,0.127]
[1673476967647,0.42265112,17586.0,17585.0,0.02809892]
[1673476968896,0.42265112,17586.0,17585.0,0.08209892]
[1673476971170,0.42265112,17586.0,17585.0,0.02809892]
[1673476971435,0.42265112,17586.0,17585.0,0.08209892]
[1673476972430,0.59580607,17586.0,17585.0,0.08209892]
[1673476972670,0.25555426,17586.0,17585.0,0.08209892]
[1673476972925,0.82325907,17586.0,17585.0,0.08209892]
[1673476973177,0.48300726,17586.0,17585.0,0.08209892]
[1673476973660,0.82325907,17586.0,17585.0,0.08209892]
[1673476974923,0.59580607,17586.0,17585.0,0.67604659]
[1673476975179,0.61274935,17587.0,17585.0,1.03239259]
[1673476975434,0.61274935,17587.0,17586.0,0.356346]
[1673476975679,0.44298528,17587.0,17586.0,0.71900828]
[1673476975920,0.44298528,17587.0,17586.0,0.13950549]
[1673476976180,0.44298528,17587.0,17586.0,0.85851377]
[1673476977170,0.61274935,17587.0,17586.0,0.27950549]
[1673476977426,0.44298692,17587.0,17586.0,0.13950549]
[1673476978218,0.44298692,17587.0,17585.0,2.74201291]
[1673476978475,0.17047062,17586.0,17585.0,2.74201291]
[1673476978716,0.17047062,17586.0,17585.0,2.02300463]
[1673476978961,0.17047062,17586.0,17585.0,2.37935063]
[1673476979840,0.17047062,17586.0,17585.0,2.43235063]
[1673476980495,0.39792362,17586.0,17585.0,2.74748652]
[1673476980959,0.227453,17586.0,17585.0,2.74748652]
[1673476981216,0.227453,17586.0,17585.0,3.4664948]
[1673476982207,0.67041916,17587.0,17585.0,3.4664948]
[1673476982453,0.67041916,17587.0,17586.0,0.356346]
[1673476982706,0.67041916,17587.0,17586.0,1.0652037]
[1673476983452,0.67041916,17587.0,17586.0,1.0654631]
[1673476983715,0.01694328,17587.0,17586.0,1.5832091]
[1673476983985,0.01694328,17587.0,17586.0,2.56028424]
[1673476984763,0.01636759,17588.0,17586.0,3.65545105]
[1673476984988,0.01636759,17588.0,17587.0,1.60057226]
[1673476985950,0.01636759,17588.0,17587.0,1.73957226]
[1673476986731,0.01636759,17588.0,17587.0,1.90909973]
[1673476986982,0.01636759,17588.0,17587.0,3.73957226]
[1673476987475,0.23612353,17593.0,17587.0,3.73957226]
[1673476987725,0.25529697,17592.0,17588.0,1.67325775]
[1673476987971,0.1611,17593.0,17588.0,1.67325775]
[1673476987972,0.25529697,17591.0,17589.0,1.06162263]
[1673476988232,0.25529697,17592.0,17589.0,0.70527663]
[1673476988513,0.48267397,17592.0,17589.0,0.94295452]
[1673476988756,0.48267397,17592.0,17590.0,0.79975349]
[1673476990003,0.48267397,17592.0,17590.0,0.92575349]
[1673476991300,0.227377,17592.0,17590.0,0.92575349]
[1673476992534,0.48267397,17592.0,17590.0,0.92575349]
[1673476992784,0.227377,17592.0,17590.0,0.92575349]
[1673476993038,0.227369,17593.0,17591.0,0.79790494]
[1673476993283,0.65042762,17594.0,17592.0,0.70520295]
[1673476993527,0.65042762,17594.0,17592.0,0.23767789]
[1673476993528,0.24513065,17594.0,17592.0,0.23767789]
[1673476993776,0.24513065,17594.0,17592.0,0.70437682]
[1673476994020,0.24513065,17594.0,17593.0,0.07043768]
[1673476995027,0.54513065,17594.0,17592.0,0.70437682]
[1673476995271,0.24513065,17594.0,17591.0,0.85001762]
[1673476995533,0.01777065,17594.0,17592.0,0.70450561]
[1673476995785,0.01567065,17594.0,17593.0,0.053]
[1673476996039,0.01567065,17594.0,17592.0,0.70450561]
[1673476996291,0.01567065,17594.0,17593.0,0.07045056]
[1673476997058,0.31567065,17594.0,17593.0,0.07045056]
[1673476997310,0.01567065,17594.0,17593.0,0.07045056]
[1673476998617,0.01567065,17594.0,17593.0,0.21045056]
[1673477000550,0.01567065,17594.0,17593.0,0.14]
[1673477000551,0.31567065,17594.0,17593.0,0.14]
[1673477001291,0.31567065,17594.0,17592.0,0.70436591]
[1673477001547,0.31567065,17594.0,17593.0,0.053]
[1673477002287,0.31567065,17594.0,17592.0,0.70436591]
[1673477002579,0.31567065,17594.0,17592.0,0.81349373]
[1673477003080,0.31567065,17594.0,17593.0,0.053]
[1673477003578,0.31567065,17594.0,17593.0,0.13964937]
[1673477004091,0.01567065,17594.0,17593.0,0.08664937]
[1673477004337,0.01567065,17594.0,17592.0,0.68749373]
[1673477004586,0.31567065,17594.0,17591.0,0.78009536]
[1673477004843,0.31567065,17594.0,17593.0,0.053]
[1673477005352,0.31567065,17594.0,17592.0,0.6875922]
[1673477005601,0.31567065,17594.0,17591.0,0.77996528]
[1673477005852,0.48618565,17594.0,17591.0,0.77996528]
[1673477006872,0.48618565,17594.0,17593.0,0.053]
[1673477007125,0.48618565,17594.0,17592.0,0.68792299]
[1673477007380,0.48618565,17594.0,17591.0,0.90649204]
[1673477007651,0.48618565,17594.0,17591.0,0.78049204]
[1673477007911,0.48618565,17594.0,17591.0,0.68791669]
[1673477008415,0.48618565,17594.0,17590.0,1.04395378]
[1673477008677,0.48618565,17594.0,17591.0,0.68823818]
[1673477008915,0.48618565,17594.0,17591.0,0.81423818]
[1673477009940,0.65601129,17594.0,17591.0,0.81423818]
[1673477010969,0.65601129,17594.0,17591.0,0.126]
[1673477011313,0.518046,17593.0,17591.0,0.126]
[1673477011523,0.470532,17592.0,17591.0,0.126]
[1673477012290,0.470532,17592.0,17590.0,0.04970334]
[1673477012550,0.470532,17592.0,17591.0,0.126]
[1673477013068,0.826878,17592.0,17591.0,0.12691126]
[1673477013316,0.826878,17592.0,17591.0,0.126]
[1673477013591,0.470532,17592.0,17591.0,0.126]
[1673477013843,0.470532,17592.0,17590.0,0.04970334]
[1673477014083,0.170532,17592.0,17590.0,0.12355761]
[1673477014359,0.170532,17592.0,17591.0,0.126]
[1673477015142,0.170532,17592.0,17590.0,0.04970334]
[1673477015365,0.470532,17592.0,17590.0,0.18970334]
[1673477015618,0.470532,17592.0,17590.0,0.04970334]
[1673477015833,0.64035764,17592.0,17591.0,0.126]
[1673477016077,0.64035764,17592.0,17590.0,0.04970334]
[1673477016802,0.470532,17592.0,17590.0,0.04970334]
[1673477017052,0.470532,17592.0,17590.0,0.18970334]
[1673477017291,0.64035764,17592.0,17590.0,0.27749372]
[1673477017544,0.34035764,17592.0,17590.0,0.27749372]
[1673477019386,0.34035764,17592.0,17590.0,0.18963945]
[1673477019914,0.59565461,17592.0,17590.0,0.18963945]
[1673477020955,0.46982564,17591.0,17590.0,0.18963945]
[1673477021478,0.46982564,17591.0,17590.0,0.14]
[1673477021720,0.16982564,17591.0,17589.0,0.68883933]
[1673477021977,0.59565461,17592.0,17589.0,0.77389326]
[1673477022230,0.59565461,17592.0,17590.0,1.18541642]
[1673477022475,0.59565461,17592.0,17590.0,0.82907042]
[1673477023239,0.59565461,17592.0,17590.0,0.68907042]
[1673477023527,0.16982564,17591.0,17589.0,0.77333365]
[1673477024082,0.16982564,17591.0,17590.0,0.57367937]
[1673477024292,0.76556347,17592.0,17590.0,0.57367937]
[1673477024293,0.59565461,17592.0,17590.0,0.57367937]
[1673477024546,0.16982564,17591.0,17589.0,0.68827972]
[1673477025050,0.16982564,17591.0,17590.0,0.356346]
[1673477025051,0.16332564,17591.0,17590.0,0.356346]
[1673477025312,0.16332564,17591.0,17589.0,0.68827972]
[1673477025823,0.41862261,17591.0,17590.0,0.356346]
[1673477026079,0.41862261,17591.0,17590.0,0.14]
[1673477026329,0.41862261,17591.0,17589.0,0.68827972]
[1673477026593,0.41862261,17591.0,17589.0,0.91327769]
[1673477026846,0.41862261,17591.0,17590.0,0.356346]
[1673477027105,0.41862261,17591.0,17590.0,1.18475614]
[1673477027361,0.41862261,17591.0,17590.0,0.14]
[1673477027616,0.41862261,17591.0,17590.0,0.82828173]
[1673477027875,0.41862261,17591.0,17590.0,0.09132797]
[1673477028120,0.16332564,17591.0,17590.0,0.77968562]
[1673477028379,0.16332564,17591.0,17590.0,1.04470365]
[1673477028887,0.16332564,17591.0,17590.0,0.68835765]
[1673477029153,0.16332564,17591.0,17590.0,0.14]
[1673477030211,0.58916361,17591.0,17590.0,0.14]
[1673477030533,0.88916361,17591.0,17590.0,0.14]
[1673477031300,0.58916361,17591.0,17590.0,0.14]
[1673477031817,0.58916361,17591.0,17590.0,0.14091132]
[1673477032069,0.58916361,17591.0,17590.0,0.14]
[1673477032321,0.88916361,17591.0,17590.0,0.14]
[1673477033133,1.06557247,17591.0,17590.0,0.14]
[1673477033585,0.8102755,17591.0,17590.0,0.14]
[1673477033841,1.23511354,17591.0,17590.0,0.14]
[1673477034607,1.06577305,17591.0,17590.0,0.14]
[1673477035083,1.22131405,17591.0,17590.0,0.14]
[1673477038691,1.22131405,17591.0,17590.0,0.14091132]
[1673477038943,1.22131405,17591.0,17590.0,0.14]
[1673477040237,1.22134014,17591.0,17590.0,0.14]
[1673477040727,1.39065454,17591.0,17590.0,0.14]
[1673477042973,1.40726604,17591.0,17590.0,0.14]
[1673477043219,1.05092004,17591.0,17590.0,0.14]
[1673477045483,1.09180138,17591.0,17590.0,0.39167789]
[1673477045732,0.75216424,17591.0,17590.0,0.510346]
[1673477045983,0.49651089,17591.0,17590.0,0.154]
[1673477046233,0.75216424,17591.0,17590.0,0.154]
[1673477047208,0.75216424,17591.0,17590.0,0.14]
[1673477047680,0.75216424,17591.0,17590.0,0.496346]
[1673477048724,1.05216424,17591.0,17590.0,0.14]
[1673477048973,1.22261669,17591.0,17590.0,0.14]
[1673477050270,1.22261669,17591.0,17587.0,1.28280611]
[1673477050271,0.92261669,17591.0,17587.0,1.28280611]
[1673477050530,0.17048042,17590.0,17588.0,0.64071604]
[1673477050808,0.59668477,17590.0,17589.0,0.356346]
[1673477051021,0.76723577,17590.0,17588.0,0.12828061]
[1673477051271,0.17048042,17589.0,17588.0,0.12828061]
[1673477051517,0.34104142,17589.0,17588.0,0.12828061]
[1673477051795,0.170561,17589.0,17588.0,0.356346]
[1673477052528,0.182561,17589.0,17588.0,0.411346]
[1673477053049,0.353122,17589.0,17588.0,0.411346]
[1673477053846,0.182561,17589.0,17588.0,0.411346]
[1673477055383,0.82360242,17589.0,17588.0,0.055]
[1673477055663,1.41884138,17589.0,17588.0,0.055]
[1673477056417,1.77518738,17589.0,17588.0,0.055]
[1673477056679,1.41884138,17589.0,17588.0,0.055]
[1673477057977,1.009468,17589.0,17588.0,0.055]
[1673477058233,1.86857896,17589.0,17588.0,0.055]
[1673477058476,2.43877576,17589.0,17588.0,0.055]
[1673477059491,2.42677576,17589.0,17587.0,0.04825316]
[1673477059743,2.04062976,17589.0,17588.0,0.005]
[1673477060000,2.42597576,17589.0,17585.0,0.03159208]
[1673477060254,1.3433188,17589.0,17588.0,0.005]
[1673477060502,2.61949955,17589.0,17585.0,0.03159208]
[1673477060748,2.23341501,17589.0,17587.0,0.005]
[1673477061001,0.517146,17588.0,17585.0,0.03159208]
[1673477061249,0.517146,17588.0,17585.0,0.03659208]
[1673477061250,0.25533658,17586.0,17585.0,0.03659208]
[1673477061494,1.58488697,17586.0,17585.0,0.03659208]
[1673477062006,1.32955039,17586.0,17585.0,0.03659208]
[1673477062254,1.75547697,17586.0,17585.0,0.03659208]
[1673477062507,1.75547697,17586.0,17585.0,0.03159208]
[1673477063015,1.75547697,17586.0,17585.0,0.03659208]
[1673477063273,1.75547697,17586.0,17585.0,0.03159208]
[1673477063591,1.88647697,17586.0,17585.0,0.03659208]
[1673477064825,1.63114039,17586.0,17585.0,0.03659208]
[1673477065871,1.88647697,17586.0,17585.0,0.03659208]
[1673477066364,1.63114039,17586.0,17585.0,0.03659208]
[1673477066856,1.88647697,17586.0,17585.0,0.03659208]
[1673477067346,1.63114039,17586.0,17585.0,0.03659208]
[1673477069940,1.460916,17586.0,17585.0,0.03659208]
[1673477070208,1.10457,17586.0,17585.0,0.03659208]
[1673477070525,1.460916,17586.0,17585.0,0.03659208]
[1673477070772,1.63114039,17586.0,17585.0,0.03659208]
[1673477071487,1.46934039,17586.0,17585.0,0.03659208]
[1673477071489,1.62964039,17586.0,17585.0,0.03659208]
[1673477071741,1.88497697,17586.0,17585.0,0.03659208]
[1673477072256,1.62964039,17586.0,17585.0,0.03659208]
[1673477074585,1.62984039,17586.0,17585.0,0.03659208]
[1673477074854,1.62984039,17586.0,17585.0,0.03650378]
[1673477075849,1.52984039,17586.0,17585.0,0.03650378]
[1673477076373,1.53014039,17586.0,17585.0,0.03650378]
[1673477078141,1.359916,17586.0,17585.0,0.03650378]
[1673477079647,1.359916,17586.0,17585.0,0.02246679]
[1673477080130,1.53014039,17586.0,17585.0,0.02246679]
[1673477081363,1.53114039,17586.0,17585.0,0.02246679]
[1673477081619,1.360916,17586.0,17585.0,0.00849316]
[1673477081859,1.53114039,17586.0,17585.0,0.00849316]
[1673477084586,1.360116,17586.0,17585.0,0.00849316]
[1673477086072,1.53034039,17586.0,17585.0,0.00849316]
[1673477086337,1.36934039,17586.0,17585.0,0.00849316]
[1673477086642,1.52984039,17586.0,17585.0,0.00849316]
[1673477088159,1.78517697,17586.0,17585.0,0.00849316]
[1673477089378,1.52984039,17586.0,17585.0,0.00849316]
[1673477090107,1.78517697,17586.0,17585.0,0.00849316]
[1673477090363,1.95540135,17586.0,17585.0,0.00849316]
[1673477090616,2.44010256,17586.0,17585.0,0.00849316]
[1673477090860,2.01454159,17586.0,17585.0,0.00849316]
[1673477091352,2.01434159,17586.0,17585.0,0.00849316]
[1673477092085,2.18484349,17586.0,17585.0,0.00849316]
[1673477092585,1.84439472,17586.0,17585.0,0.00849316]
[1673477093092,1.83765932,17586.0,17585.0,0.00849316]
[1673477094152,1.41209835,17586.0,17585.0,0.00849316]
[1673477094412,1.25179835,17586.0,17585.0,0.00849316]
[1673477094666,1.41359835,17586.0,17585.0,0.00849316]
[1673477095672,1.41569835,17586.0,17585.0,0.00849316]
[1673477096413,1.25389835,17586.0,17585.0,0.00849316]
[1673477097384,1.76469016,17586.0,17585.0,0.00849316]
[1673477097875,1.25389835,17586.0,17585.0,0.00849316]
[1673477098130,1.76469016,17586.0,17585.0,0.00849316]
[1673477101149,1.56469016,17586.0,17585.0,0.00849316]
[1673477101923,1.56299516,17586.0,17585.0,0.00849316]
[1673477102429,1.86299516,17586.0,17585.0,0.00849316]
[1673477104732,2.02489516,17586.0,17585.0,0.00849316]
[1673477105219,2.025788,17586.0,17585.0,0.00849316]
[1673477105457,2.02578897,17586.0,17585.0,0.00849316]
[1673477105956,1.51410335,17586.0,17585.0,0.00849316]
[1673477106461,2.02581093,17586.0,17585.0,0.00849316]
[1673477107222,1.51410335,17586.0,17585.0,0.00849316]
[1673477107479,2.02581033,17586.0,17585.0,0.00849316]
[1673477107729,1.51410335,17586.0,17585.0,0.00849316]
[1673477107943,1.51300335,17586.0,17585.0,0.00849316]
[1673477110819,2.02481328,17586.0,17585.0,0.00849316]
[1673477111070,2.02481399,17586.0,17585.0,0.00849316]
[1673477111324,1.86401399,17586.0,17585.0,0.00849316]
[1673477111579,2.02591399,17586.0,17585.0,0.00849316]
[1673477113350,2.02592957,17586.0,17585.0,0.00849316]
[1673477117342,1.86402957,17586.0,17585.0,0.00849316]
[1673477117582,1.80461182,17586.0,17585.0,0.00849316]
[1673477118381,1.2927856,17586.0,17585.0,0.00849316]
[1673477118635,0.9364396,17586.0,17585.0,0.00849316]
[1673477118895,1.2927856,17586.0,17585.0,0.00849316]
[1673477119191,1.2927856,17586.0,17585.0,0.00835566]
[1673477120136,0.9364396,17586.0,17585.0,0.00835566]
[1673477120628,1.2927856,17586.0,17585.0,0.00835566]
[1673477120870,0.9364396,17586.0,17585.0,0.00835566]
[1673477121128,1.2927856,17586.0,17585.0,0.00835566]
[1673477121944,0.9364396,17586.0,17585.0,0.00835566]
[1673477122442,1.36272856,17586.0,17585.0,0.00835566]
[1673477122695,1.36272856,17586.0,17585.0,0.09849566]
[1673477123193,1.36272856,17586.0,17585.0,0.00835566]
[1673477124209,1.36272856,17586.0,17585.0,0.09849566]
[1673477124460,1.36272856,17586.0,17585.0,0.00835566]
[1673477124714,1.36272856,17586.0,17585.0,0.09849566]
[1673477124970,1.70369741,17586.0,17585.0,0.10869454]
[1673477125220,1.70369741,17586.0,17585.0,0.09849566]
[1673477126251,1.70369741,17586.0,17585.0,0.00835566]
[1673477127023,1.9593674,17586.0,17585.0,0.09849566]
[1673477127248,1.53307844,17586.0,17585.0,0.09849566]
[1673477127784,1.53307844,17586.0,17585.0,0.00835566]
[1673477128284,1.53307844,17586.0,17585.0,0.09849566]
[1673477128531,1.53307844,17586.0,17585.0,0.10869454]
[1673477128775,1.36251743,17586.0,17585.0,0.10869454]
[1673477129033,1.36251743,17586.0,17585.0,0.09849566]
[1673477130560,1.06251743,17586.0,17585.0,0.09849566]
[1673477131076,0.80684744,17586.0,17585.0,0.09849566]
[1673477131314,1.36251743,17586.0,17585.0,0.09849566]
[1673477131575,1.06251743,17586.0,17585.0,0.09849566]
[1673477131837,0.80684744,17586.0,17585.0,0.09849566]
[1673477132091,1.36251743,17586.0,17585.0,0.09849566]
[1673477132351,1.10684744,17586.0,17585.0,0.09849566]
[1673477132862,0.80684744,17586.0,17585.0,0.14950974]
[1673477133121,0.80684744,17586.0,17585.0,0.50585574]
[1673477133860,0.80684744,17586.0,17585.0,0.14950974]
[1673477134362,1.10684744,17586.0,17585.0,0.03298086]
[1673477134613,1.36251743,17586.0,17585.0,0.03298086]
[1673477136571,0.80684744,17586.0,17585.0,0.38932686]
[1673477137091,1.10684744,17586.0,17585.0,0.38932686]
[1673477138096,1.10684744,17586.0,17585.0,0.03298086]
[1673477138344,1.10684744,17586.0,17585.0,0.05281826]
[1673477138597,0.93625744,17586.0,17585.0,0.05281826]
[1673477139365,0.63625744,17586.0,17585.0,0.05281826]
[1673477139870,0.93625744,17586.0,17585.0,0.05281826]
[1673477140861,1.19192743,17586.0,17585.0,0.03286881]
[1673477141115,1.36248844,17586.0,17585.0,0.03286881]
[1673477141882,1.19184503,17586.0,17585.0,0.03286881]
[1673477142141,1.36248844,17586.0,17585.0,0.03286881]
[1673477142383,1.19184507,17586.0,17585.0,0.03286881]
[1673477142640,1.19184507,17586.0,17585.0,0.05269501]
[1673477142913,1.18903344,17586.0,17585.0,0.05269501]
[1673477143157,1.35967681,17586.0,17585.0,0.05269501]
[1673477144157,1.53000815,17586.0,17585.0,0.05269501]
[1673477144410,1.35967681,17586.0,17585.0,0.05269501]
[1673477144661,1.53002106,17586.0,17585.0,0.03286881]
[1673477144914,1.18905221,17586.0,17585.0,0.03286881]
[1673477148505,0.93338222,17586.0,17585.0,0.03286881]
[1673477149005,1.18905221,17586.0,17585.0,0.03286881]
[1673477152323,1.53002106,17586.0,17585.0,0.03286881]
[1673477152575,1.18914944,17586.0,17585.0,0.03286881]
[1673477152827,1.35967681,17586.0,17585.0,0.03286881]
[1673477153345,1.18914948,17586.0,17585.0,0.03286881]
[1673477154344,1.18908681,17586.0,17585.0,0.03286881]
[1673477154617,1.35970578,17586.0,17585.0,0.03286881]
[1673477154869,1.18913237,17586.0,17585.0,0.03286881]
[1673477155416,1.35970578,17586.0,17585.0,0.03286881]
[1673477155689,1.61542178,17586.0,17585.0,0.03286881]
[1673477155937,1.18913282,17586.0,17585.0,0.03286881]
[1673477156205,1.35972282,17586.0,17585.0,0.03286881]
[1673477156450,1.53029578,17586.0,17585.0,0.03286881]
[1673477159015,1.35970578,17586.0,17585.0,0.03286881]
[1673477159782,1.53029578,17586.0,17585.0,0.03286881]
[1673477163681,1.70088578,17586.0,17585.0,0.03286881]
[1673477163916,1.05987801,17586.0,17585.0,0.03286881]
[1673477164389,1.05987801,17586.0,17585.0,0.05259501]
[1673477164664,1.05987801,17586.0,17585.0,0.03286881]
[1673477164908,1.40088578,17586.0,17585.0,0.03286881]
[1673477165166,1.70088578,17586.0,17585.0,0.03286881]
[1673477165412,1.70088578,17586.0,17585.0,0.03278811]
[1673477165666,1.53047974,17586.0,17585.0,0.03278811]
[1673477166186,1.7861787,17586.0,17585.0,0.03278811]
[1673477166464,1.70088578,17586.0,17585.0,0.03278811]
[1673477166712,1.53029578,17586.0,17585.0,0.03278811]
[1673477168619,1.18932693,17586.0,17585.0,0.03278811]
[1673477168860,1.35991693,17586.0,17585.0,0.03278811]
[1673477169353,0.93362797,17586.0,17585.0,0.03278811]
[1673477169601,1.36014087,17586.0,17585.0,0.03278811]
[1673477172642,1.53073469,17586.0,17585.0,0.03278811]
[1673477174050,1.36010486,17586.0,17585.0,0.03278811]
[1673477174284,1.53073469,17586.0,17585.0,0.03278811]
[1673477174818,1.51239244,17586.0,17585.0,0.03278811]
[1673477176506,1.51239244,17586.0,17585.0,0.03296874]
[1673477176746,1.51239244,17586.0,17585.0,0.03278811]
[1673477178442,1.04176461,17586.0,17585.0,0.03278811]
[1673477178929,1.34176461,17586.0,17585.0,0.03278811]
[1673477180120,1.34176518,17586.0,17585.0,0.03278811]
[1673477180375,1.76827808,17586.0,17585.0,0.03278811]
[1673477180848,1.17120862,17586.0,17585.0,0.03278811]
[1673477181078,1.34179862,17586.0,17585.0,0.03278811]
[1673477181313,1.17120862,17586.0,17585.0,0.03278811]
[1673477181540,1.34179862,17586.0,17585.0,0.03278811]
[1673477181769,1.17120862,17586.0,17585.0,0.03278811]
[1673477183731,1.51240298,17586.0,17585.0,0.10596426]
[1673477183960,1.17120862,17586.0,17585.0,0.03278811]
[1673477186761,1.51240234,17586.0,17585.0,0.03278811]
[1673477187245,1.51240191,17586.0,17585.0,0.03278811]
[1673477188005,1.68299191,17586.0,17585.0,0.03278811]
[1673477189474,1.51240191,17586.0,17585.0,0.03278811]
[1673477189723,1.04178151,17586.0,17585.0,0.12215427]
[1673477190217,1.04178151,17586.0,17585.0,0.1223349]
[1673477190468,1.04178151,17586.0,17585.0,0.03278811]
[1673477190708,1.34178151,17586.0,17585.0,0.03278811]
[1673477190989,1.04178151,17586.0,17585.0,0.03278811]
[1673477191501,1.34178151,17586.0,17585.0,0.03278811]
[1673477191748,1.51237151,17586.0,17585.0,0.03278811]
[1673477191985,1.51237151,17586.0,17585.0,0.12215427]
[1673477192994,1.34178151,17586.0,17585.0,0.12215427]
[1673477193243,1.21237151,17586.0,17585.0,0.12215427]
[1673477193735,1.51237151,17586.0,17585.0,0.12215427]
[1673477194272,1.21237151,17586.0,17585.0,0.12215427]
[1673477194521,1.21237151,17586.0,17585.0,0.12385213]
[1673477194767,1.21237151,17586.0,17585.0,0.03448597]
[1673477195018,1.51237151,17586.0,17585.0,0.03448597]
[1673477195611,1.21237151,17586.0,17585.0,0.03448597]
[1673477196340,1.51237151,17586.0,17585.0,0.03448597]
[1673477196592,1.51237151,17586.0,17585.0,0.03278811]
[1673477196854,1.68299191,17586.0,17585.0,0.12215427]
[1673477197107,1.68299191,17586.0,17585.0,0.03278811]
[1673477197614,1.68099191,17586.0,17585.0,0.03278811]
[1673477200168,1.68097018,17586.0,17585.0,0.03278811]
[1673477202650,1.68097018,17586.0,17585.0,0.03286896]
[1673477204164,1.68097018,17586.0,17585.0,0.03278811]
[1673477204671,1.68097018,17586.0,17585.0,0.05260624]
[1673477205424,1.68097018,17586.0,17585.0,0.05268709]
[1673477205680,1.68097018,17586.0,17585.0,0.05260624]
[1673477206714,1.33979862,17586.0,17585.0,0.05260624]
[1673477207938,1.68098657,17586.0,17585.0,0.05268709]
[1673477208945,1.68098657,17586.0,17585.0,0.05260624]
[1673477209188,1.68098657,17586.0,17585.0,0.05268709]
[1673477209444,1.68098657,17586.0,17585.0,0.05260624]
[1673477209445,1.33979862,17586.0,17585.0,0.05260624]
[1673477209695,1.68098693,17586.0,17585.0,0.05260624]
[1673477211706,1.33979862,17586.0,17585.0,0.03278811]
[1673477212492,1.68100041,17586.0,17585.0,0.03278811]
[1673477212747,1.33979862,17586.0,17585.0,0.03278811]
[1673477216575,1.33979862,17586.0,17585.0,0.03440915]